[Event "Early-Titled-Tuesday-Blitz-May-14-2024"]
[Site "Chess.com"]
[Date "2024.05.14"]
[Round "8"]
[White "Maluco_do_Natal_00"]
[Black "grozdanovic_a"]
[Result "0-1"]
[WhiteElo "2031"]
[BlackElo "2310"]
[TimeControl "180+1"]
[EndTime "9:30:43 PDT"]
[Termination "grozdanovic_a won on time"]

1. e4 {[%clk 0:03:00.9]} 1... c5 {[%clk 0:02:59.9]} 2. Nf3 {[%clk 0:03:00.4]}
2... d6 {[%clk 0:03:00.5]} 3. d4 {[%clk 0:03:00.9]} 3... cxd4 {[%clk 0:03:01.4]}
4. Nxd4 {[%clk 0:03:01.7]} 4... Nf6 {[%clk 0:03:02.1]} 5. Nc3 {[%clk 0:03:02.3]}
5... a6 {[%clk 0:03:00.5]} 6. Be3 {[%clk 0:03:02.2]} 6... b5 {[%clk 0:03:00.2]}
7. a3 {[%clk 0:02:56.8]} 7... Bb7 {[%clk 0:02:59.9]} 8. f3 {[%clk 0:02:57.1]}
8... g6 {[%clk 0:02:57.4]} 9. Qd2 {[%clk 0:02:56.3]} 9... Bg7 {[%clk 0:02:58]}
10. h4 {[%clk 0:02:52.2]} 10... h5 {[%clk 0:02:58.1]} 11. O-O-O {[%clk
0:02:50.1]} 11... Nbd7 {[%clk 0:02:56]} 12. Kb1 {[%clk 0:02:43.8]} 12... Rc8
{[%clk 0:02:56.1]} 13. Nb3 {[%clk 0:02:33]} 13... Ne5 {[%clk 0:02:50.2]} 14. Be2
{[%clk 0:02:13]} 14... Nc4 {[%clk 0:02:42.8]} 15. Bxc4 {[%clk 0:02:12.7]} 15...
bxc4 {[%clk 0:02:39.9]} 16. Nd4 {[%clk 0:02:10.5]} 16... Nd7 {[%clk 0:02:35.8]}
17. Nde2 {[%clk 0:02:03.9]} 17... Ba8 {[%clk 0:02:12.8]} 18. f4 {[%clk
0:01:54.5]} 18... Nc5 {[%clk 0:02:09.8]} 19. e5 {[%clk 0:01:41.6]} 19... Bxg2
{[%clk 0:02:06.8]} 20. Rhg1 {[%clk 0:01:40.2]} 20... Ne4 {[%clk 0:01:59.4]} 21.
Qd4 {[%clk 0:01:14.8]} 21... Nxc3+ {[%clk 0:01:57]} 22. Nxc3 {[%clk 0:01:09.9]}
22... Ba8 {[%clk 0:01:52]} 23. Qa7 {[%clk 0:01:05.8]} 23... Qc7 {[%clk
0:01:42.7]} 24. Qxa6 {[%clk 0:01:00.1]} 24... dxe5 {[%clk 0:01:40.8]} 25. Bb6
{[%clk 0:00:53.8]} 25... Qc6 {[%clk 0:01:30.4]} 26. f5 {[%clk 0:00:49.9]} 26...
Bb7 {[%clk 0:01:24.9]} 27. Qa5 {[%clk 0:00:39.9]} 27... Ra8 {[%clk 0:01:19]} 28.
Rd8+ {[%clk 0:00:37.1]} 28... Rxd8 {[%clk 0:01:17.4]} 29. Bxd8 {[%clk
0:00:37.2]} 29... O-O {[%clk 0:01:02.1]} 30. fxg6 {[%clk 0:00:37.3]} 30... fxg6
{[%clk 0:00:59.1]} 31. Bxe7 {[%clk 0:00:29.7]} 31... Ra8 {[%clk 0:00:56.7]} 32.
Qb4 {[%clk 0:00:26.7]} 32... e4 {[%clk 0:00:52.4]} 33. Bd6 {[%clk 0:00:20]}
33... Kh7 {[%clk 0:00:47.9]} 34. Bc5 {[%clk 0:00:12]} 34... Rb8 {[%clk
0:00:41.1]} 35. Qxc4 {[%clk 0:00:10.4]} 35... Ba6 {[%clk 0:00:36.6]} 36. Qd5
{[%clk 0:00:06.7]} 36... Qxd5 {[%clk 0:00:32.7]} 37. Nxd5 {[%clk 0:00:07.2]}
37... Rxb2+ {[%clk 0:00:32.2]} 38. Kc1 {[%clk 0:00:06.6]} 38... Rb5 {[%clk
0:00:29.8]} 39. Nc7 {[%clk 0:00:03.5]} 39... Rxc5 {[%clk 0:00:25.8]} 40. Nxa6
{[%clk 0:00:03.4]} 40... Ra5 {[%clk 0:00:26.1]} 41. Nb4 {[%clk 0:00:03.3]} 41...
Rxa3 {[%clk 0:00:26]} 42. Re1 {[%clk 0:00:03.5]} 42... e3 {[%clk 0:00:21.4]} 43.
Kd1 {[%clk 0:00:01.3]} 43... Bc3 {[%clk 0:00:18.6]} 0-1

[Event "Early-Titled-Tuesday-Blitz-May-14-2024"]
[Site "Chess.com"]
[Date "2024.05.14"]
[Round "8"]
[White "Moon_stone123"]
[Black "laiciffOneslraCsungaM"]
[Result "1-0"]
[WhiteElo "2620"]
[BlackElo "2424"]
[TimeControl "180+1"]
[EndTime "9:30:44 PDT"]
[Termination "Moon_stone123 won by checkmate"]

1. d4 {[%clk 0:03:00.8]} 1... Nf6 {[%clk 0:02:59.3]} 2. Nf3 {[%clk 0:02:59.1]}
2... d6 {[%clk 0:02:57.3]} 3. c4 {[%clk 0:02:52.6]} 3... Nbd7 {[%clk 0:02:55.4]}
4. Nc3 {[%clk 0:02:51.8]} 4... e5 {[%clk 0:02:55.1]} 5. e4 {[%clk 0:02:51.4]}
5... Be7 {[%clk 0:02:51.3]} 6. Be2 {[%clk 0:02:50.8]} 6... O-O {[%clk
0:02:51.3]} 7. O-O {[%clk 0:02:48.1]} 7... Re8 {[%clk 0:02:49.9]} 8. Re1 {[%clk
0:02:45.7]} 8... h6 {[%clk 0:02:46.6]} 9. h3 {[%clk 0:02:45.3]} 9... c6 {[%clk
0:02:46.2]} 10. Be3 {[%clk 0:02:29.4]} 10... Bf8 {[%clk 0:02:43.9]} 11. d5
{[%clk 0:02:26]} 11... c5 {[%clk 0:02:40]} 12. a3 {[%clk 0:02:25]} 12... g6
{[%clk 0:02:28.3]} 13. Qd2 {[%clk 0:02:23.7]} 13... Kh7 {[%clk 0:02:26.6]} 14.
b4 {[%clk 0:02:20.3]} 14... b6 {[%clk 0:02:25.7]} 15. Bf1 {[%clk 0:02:11.7]}
15... Nh5 {[%clk 0:02:24.1]} 16. g3 {[%clk 0:02:07.4]} 16... Bg7 {[%clk
0:02:20.7]} 17. Bg2 {[%clk 0:02:07]} 17... f5 {[%clk 0:02:20.5]} 18. Rac1 {[%clk
0:01:47.7]} 18... Rf8 {[%clk 0:01:59.5]} 19. exf5 {[%clk 0:01:47]} 19... gxf5
{[%clk 0:02:00.4]} 20. Qc2 {[%clk 0:01:38.2]} 20... Kh8 {[%clk 0:01:52.4]} 21.
Nb5 {[%clk 0:01:28.9]} 21... Ndf6 {[%clk 0:01:48.2]} 22. Nh4 {[%clk 0:01:26.6]}
22... f4 {[%clk 0:01:38.3]} 23. Ng6+ {[%clk 0:01:25.2]} 23... Kg8 {[%clk
0:01:38]} 24. gxf4 {[%clk 0:01:11.5]} 24... exf4 {[%clk 0:01:37.4]} 25. Bxf4
{[%clk 0:01:02.6]} 25... Nxf4 {[%clk 0:01:36.1]} 26. Nxf4 {[%clk 0:01:03.1]}
26... a6 {[%clk 0:01:24.7]} 27. Ne6 {[%clk 0:00:56.4]} 27... Bxe6 {[%clk
0:01:08.3]} 28. dxe6 {[%clk 0:00:57.3]} 28... Qe7 {[%clk 0:01:03.3]} 29. Nc3
{[%clk 0:00:56]} 29... Rac8 {[%clk 0:00:54.9]} 30. Nd5 {[%clk 0:00:55.4]} 30...
Nxd5 {[%clk 0:00:54.4]} 31. Bxd5 {[%clk 0:00:52.1]} 31... Kh8 {[%clk 0:00:41.6]}
32. Kh1 {[%clk 0:00:50.8]} 32... Bd4 {[%clk 0:00:38.1]} 33. Qg6 {[%clk
0:00:43.8]} 33... Qh4 {[%clk 0:00:36]} 34. Qg3 {[%clk 0:00:33.2]} 34... Bxf2
{[%clk 0:00:28.1]} 35. Qxh4 {[%clk 0:00:33.4]} 35... Bxh4 {[%clk 0:00:29]} 36.
Re4 {[%clk 0:00:31.6]} 36... Be7 {[%clk 0:00:26.4]} 37. Rg1 {[%clk 0:00:31.8]}
37... Rg8 {[%clk 0:00:26.2]} 38. Rf1 {[%clk 0:00:28.1]} 38... Rcf8 {[%clk
0:00:25.4]} 39. Rf7 {[%clk 0:00:27.9]} 39... Rg7 {[%clk 0:00:19]} 40. Ref4
{[%clk 0:00:25.7]} 40... Rfxf7 {[%clk 0:00:16.9]} 41. exf7 {[%clk 0:00:24.1]}
41... Bf8 {[%clk 0:00:17.4]} 42. Re4 {[%clk 0:00:24.3]} 42... Rg3 {[%clk
0:00:16.4]} 43. Kh2 {[%clk 0:00:23.8]} 43... Rxa3 {[%clk 0:00:15.7]} 44. Rg4
{[%clk 0:00:21.4]} 44... Be7 {[%clk 0:00:12]} 45. Rg8+ {[%clk 0:00:20.1]} 45...
Kh7 {[%clk 0:00:12.1]} 46. Be4# {[%clk 0:00:20.6]} 1-0

[Event "Early-Titled-Tuesday-Blitz-May-14-2024"]
[Site "Chess.com"]
[Date "2024.05.14"]
[Round "8"]
[White "Kotofeyca"]
[Black "MariaFominykh"]
[Result "1-0"]
[WhiteElo "2509"]
[BlackElo "2355"]
[TimeControl "180+1"]
[EndTime "9:30:44 PDT"]
[Termination "Kotofeyca won on time"]

1. d4 {[%clk 0:03:00.9]} 1... Nf6 {[%clk 0:02:59.3]} 2. c4 {[%clk 0:03:00.8]}
2... g6 {[%clk 0:02:59.6]} 3. f3 {[%clk 0:03:00.7]} 3... c5 {[%clk 0:02:53.7]}
4. dxc5 {[%clk 0:02:59.3]} 4... Na6 {[%clk 0:02:50.4]} 5. e4 {[%clk 0:02:57.3]}
5... Nxc5 {[%clk 0:02:49]} 6. Be3 {[%clk 0:02:55.3]} 6... Qc7 {[%clk 0:02:36.9]}
7. Nc3 {[%clk 0:02:51.9]} 7... Bg7 {[%clk 0:02:27.6]} 8. Rc1 {[%clk 0:02:23.2]}
8... Ne6 {[%clk 0:01:31.5]} 9. Nd5 {[%clk 0:02:01.1]} 9... Qb8 {[%clk
0:01:26.3]} 10. Ne2 {[%clk 0:01:51.9]} 10... d6 {[%clk 0:01:01.4]} 11. Nec3
{[%clk 0:01:48.9]} 11... Bd7 {[%clk 0:00:57.6]} 12. Be2 {[%clk 0:01:39.3]} 12...
Qd8 {[%clk 0:00:54]} 13. O-O {[%clk 0:01:25.9]} 13... O-O {[%clk 0:00:53.7]} 14.
Qd2 {[%clk 0:01:23.5]} 14... Re8 {[%clk 0:00:50]} 15. f4 {[%clk 0:01:18.7]}
15... Nc5 {[%clk 0:00:34.3]} 16. Bf3 {[%clk 0:01:15.6]} 16... Bc6 {[%clk
0:00:25.3]} 17. b4 {[%clk 0:01:07.3]} 17... Ncd7 {[%clk 0:00:25.2]} 18. Nxf6+
{[%clk 0:00:52.4]} 18... Nxf6 {[%clk 0:00:24.7]} 19. Nd5 {[%clk 0:00:49]} 19...
Nxd5 {[%clk 0:00:17.5]} 20. exd5 {[%clk 0:00:46.2]} 20... Bd7 {[%clk 0:00:16.4]}
21. Rfe1 {[%clk 0:00:42.5]} 21... b6 {[%clk 0:00:14.3]} 22. Bd4 {[%clk
0:00:41.3]} 22... Rc8 {[%clk 0:00:13.8]} 23. Re3 {[%clk 0:00:36.1]} 23... e5
{[%clk 0:00:11.8]} 24. dxe6 {[%clk 0:00:34.7]} 24... Bxe6 {[%clk 0:00:11.6]} 25.
Bxg7 {[%clk 0:00:34.4]} 25... Kxg7 {[%clk 0:00:12.5]} 26. Bd5 {[%clk 0:00:26.2]}
26... Bxd5 {[%clk 0:00:08.5]} 27. Qxd5 {[%clk 0:00:23.2]} 27... Rxe3 {[%clk
0:00:07.1]} 28. Qd4+ {[%clk 0:00:23.7]} 28... Qf6 {[%clk 0:00:05.1]} 29. Qxe3
{[%clk 0:00:23.8]} 29... Qb2 {[%clk 0:00:05.1]} 30. a3 {[%clk 0:00:21.1]} 30...
d5 {[%clk 0:00:05]} 31. c5 {[%clk 0:00:14.4]} 31... bxc5 {[%clk 0:00:04.1]} 32.
Rxc5 {[%clk 0:00:11.6]} 32... Rxc5 {[%clk 0:00:02.1]} 33. bxc5 {[%clk
0:00:12.2]} 33... d4 {[%clk 0:00:01.8]} 34. Qe5+ {[%clk 0:00:12.3]} 34... Kh6
{[%clk 0:00:00.3]} 35. h4 {[%clk 0:00:07.3]} 35... Qc1+ {[%clk 0:00:01.2]} 36.
Kh2 {[%clk 0:00:07.2]} 36... Qe3 {[%clk 0:00:01.3]} 37. Qxe3 {[%clk 0:00:06.1]}
37... dxe3 {[%clk 0:00:01.3]} 38. Kg3 {[%clk 0:00:06.7]} 1-0

[Event "Early-Titled-Tuesday-Blitz-May-14-2024"]
[Site "Chess.com"]
[Date "2024.05.14"]
[Round "8"]
[White "ProtectiveCarrot"]
[Black "briesmas"]
[Result "0-1"]
[WhiteElo "2492"]
[BlackElo "2375"]
[TimeControl "180+1"]
[EndTime "9:30:48 PDT"]
[Termination "briesmas won by checkmate"]

1. e4 {[%clk 0:02:44.3]} 1... c5 {[%clk 0:02:59.6]} 2. Nf3 {[%clk 0:02:44]} 2...
d6 {[%clk 0:02:59.6]} 3. d4 {[%clk 0:02:43.3]} 3... cxd4 {[%clk 0:02:59.6]} 4.
Qxd4 {[%clk 0:02:44.2]} 4... Nf6 {[%clk 0:02:54.3]} 5. Be2 {[%clk 0:02:43.2]}
5... e5 {[%clk 0:02:36.3]} 6. Qe3 {[%clk 0:02:39.8]} 6... h6 {[%clk 0:02:27.2]}
7. O-O {[%clk 0:02:36]} 7... Be7 {[%clk 0:02:23.9]} 8. Rd1 {[%clk 0:02:36.1]}
8... Qc7 {[%clk 0:02:20.6]} 9. Nc3 {[%clk 0:02:35.9]} 9... O-O {[%clk
0:02:15.3]} 10. h3 {[%clk 0:02:36]} 10... Be6 {[%clk 0:02:14.5]} 11. a4 {[%clk
0:02:23.5]} 11... a6 {[%clk 0:02:10.5]} 12. Bd2 {[%clk 0:02:10.3]} 12... Nbd7
{[%clk 0:02:04.5]} 13. Be1 {[%clk 0:02:07.9]} 13... Nb6 {[%clk 0:01:57.2]} 14.
b3 {[%clk 0:02:04.9]} 14... Rac8 {[%clk 0:01:53.7]} 15. a5 {[%clk 0:02:03.1]}
15... Nbd7 {[%clk 0:01:53.2]} 16. Nd5 {[%clk 0:01:49.1]} 16... Bxd5 {[%clk
0:01:48.1]} 17. exd5 {[%clk 0:01:49.6]} 17... Qxc2 {[%clk 0:01:43.9]} 18. Bc4
{[%clk 0:01:34.9]} 18... Nc5 {[%clk 0:01:30.2]} 19. Nd4 {[%clk 0:01:27.6]} 19...
exd4 {[%clk 0:01:25.6]} 20. Qxe7 {[%clk 0:01:26.6]} 20... Nxb3 {[%clk
0:01:18.8]} 21. Bxb3 {[%clk 0:01:17.3]} 21... Qxb3 {[%clk 0:01:19.7]} 22. Rab1
{[%clk 0:01:15.9]} 22... Qxd5 {[%clk 0:01:16.4]} 23. Qxb7 {[%clk 0:01:08.8]}
23... Qc4 {[%clk 0:00:59.9]} 24. Rb4 {[%clk 0:01:04.4]} 24... Qc2 {[%clk
0:00:55.3]} 25. Rbxd4 {[%clk 0:01:03.6]} 25... d5 {[%clk 0:00:46.9]} 26. Qxa6
{[%clk 0:01:00]} 26... Rfe8 {[%clk 0:00:41.5]} 27. Qd3 {[%clk 0:00:42.4]} 27...
Qa2 {[%clk 0:00:32.1]} 28. Bc3 {[%clk 0:00:24.9]} 28... Ne4 {[%clk 0:00:28.7]}
29. Be1 {[%clk 0:00:23.4]} 29... Rc2 {[%clk 0:00:17.8]} 30. Qf3 {[%clk
0:00:15.6]} 30... Re2 {[%clk 0:00:14.3]} 31. Kf1 {[%clk 0:00:09.8]} 31... Rc2
{[%clk 0:00:06.5]} 32. Rxd5 {[%clk 0:00:08.1]} 32... Qc4+ {[%clk 0:00:04.8]} 33.
Kg1 {[%clk 0:00:08.3]} 33... Ng5 {[%clk 0:00:03.5]} 34. Qd3 {[%clk 0:00:07.6]}
34... Qc7 {[%clk 0:00:03.6]} 35. h4 {[%clk 0:00:06]} 35... Ne6 {[%clk
0:00:03.5]} 36. Rd7 {[%clk 0:00:06.2]} 36... Qc6 {[%clk 0:00:03.4]} 37. Qf5
{[%clk 0:00:05.6]} 37... Rf8 {[%clk 0:00:01.9]} 38. h5 {[%clk 0:00:04.7]} 38...
Rc5 {[%clk 0:00:02.2]} 39. Qg4 {[%clk 0:00:02]} 39... Rg5 {[%clk 0:00:02.4]} 40.
Qe2 {[%clk 0:00:02.6]} 40... Qxg2# {[%clk 0:00:02.3]} 0-1

[Event "Early-Titled-Tuesday-Blitz-May-14-2024"]
[Site "Chess.com"]
[Date "2024.05.14"]
[Round "8"]
[White "IlanSchnaider"]
[Black "Mikhail_Bryakin"]
[Result "0-1"]
[WhiteElo "2732"]
[BlackElo "2896"]
[TimeControl "180+1"]
[EndTime "9:30:50 PDT"]
[Termination "Mikhail_Bryakin won by checkmate"]

1. e4 {[%clk 0:03:00.9]} 1... d5 {[%clk 0:02:55.2]} 2. exd5 {[%clk 0:03:00.8]}
2... Qxd5 {[%clk 0:02:54.9]} 3. Nc3 {[%clk 0:03:01.3]} 3... Qe5+ {[%clk
0:02:55.6]} 4. Be2 {[%clk 0:02:51.8]} 4... Bg4 {[%clk 0:02:55.9]} 5. d4 {[%clk
0:02:52.3]} 5... Bxe2 {[%clk 0:02:56.6]} 6. Ngxe2 {[%clk 0:02:51.4]} 6... Qa5
{[%clk 0:02:57.1]} 7. b4 {[%clk 0:02:36.5]} 7... Qh5 {[%clk 0:02:56.9]} 8. O-O
{[%clk 0:02:33.8]} 8... Nf6 {[%clk 0:02:57.3]} 9. Qd3 {[%clk 0:02:32.9]} 9... e6
{[%clk 0:02:34.9]} 10. Ng3 {[%clk 0:02:22.7]} 10... Qg6 {[%clk 0:02:34.5]} 11.
Qb5+ {[%clk 0:02:22.8]} 11... Nbd7 {[%clk 0:02:35.2]} 12. Qxb7 {[%clk
0:02:22.1]} 12... Rb8 {[%clk 0:02:35.9]} 13. Qxc7 {[%clk 0:02:21.6]} 13... Qxc2
{[%clk 0:02:34.2]} 14. Bf4 {[%clk 0:02:10.4]} 14... Bxb4 {[%clk 0:02:24.7]} 15.
Rac1 {[%clk 0:01:58.8]} 15... Qd3 {[%clk 0:02:18.2]} 16. Qxa7 {[%clk 0:01:31.7]}
16... Rd8 {[%clk 0:01:35.5]} 17. Rfd1 {[%clk 0:01:18.5]} 17... Qg6 {[%clk
0:01:28.2]} 18. Bc7 {[%clk 0:00:36.9]} 18... Rc8 {[%clk 0:01:25.9]} 19. Qb7
{[%clk 0:00:30.2]} 19... O-O {[%clk 0:01:23.7]} 20. Nb5 {[%clk 0:00:21.6]} 20...
Be7 {[%clk 0:01:12.3]} 21. Bd6 {[%clk 0:00:17.4]} 21... Rxc1 {[%clk 0:01:08.1]}
22. Rxc1 {[%clk 0:00:18.3]} 22... Bxd6 {[%clk 0:01:01.2]} 23. Nxd6 {[%clk
0:00:19.2]} 23... Qg5 {[%clk 0:01:01.9]} 24. Rc8 {[%clk 0:00:16.1]} 24... Qa5
{[%clk 0:00:41.8]} 25. Rxf8+ {[%clk 0:00:15.7]} 25... Kxf8 {[%clk 0:00:42.7]}
26. h3 {[%clk 0:00:11]} 26... Qxa2 {[%clk 0:00:36.1]} 27. Qc8+ {[%clk
0:00:06.4]} 27... Ke7 {[%clk 0:00:36.5]} 28. Qc7 {[%clk 0:00:04]} 28... g6
{[%clk 0:00:25.9]} 29. Nc8+ {[%clk 0:00:04]} 29... Kf8 {[%clk 0:00:26.7]} 30.
Qd6+ {[%clk 0:00:02.4]} 30... Kg7 {[%clk 0:00:27.4]} 31. Nb6 {[%clk 0:00:02.2]}
31... Qa6 {[%clk 0:00:23.8]} 32. Nc8 {[%clk 0:00:01.6]} 32... Qxc8 {[%clk
0:00:23.4]} 33. Qf4 {[%clk 0:00:01.3]} 33... Qc6 {[%clk 0:00:22.3]} 34. Kh2
{[%clk 0:00:01.6]} 34... Qd5 {[%clk 0:00:22.3]} 35. h4 {[%clk 0:00:02.1]} 35...
Nh5 {[%clk 0:00:21.4]} 36. Nxh5+ {[%clk 0:00:01.6]} 36... Qxh5 {[%clk
0:00:22.3]} 37. Qd6 {[%clk 0:00:02]} 37... Nf6 {[%clk 0:00:22.4]} 38. Qg3 {[%clk
0:00:01.9]} 38... Qg4 {[%clk 0:00:22.2]} 39. Qe5 {[%clk 0:00:01.7]} 39... Qxh4+
{[%clk 0:00:22.3]} 40. Kg1 {[%clk 0:00:02.4]} 40... Qe4 {[%clk 0:00:22.1]} 41.
Qd6 {[%clk 0:00:02.6]} 41... Qd5 {[%clk 0:00:22.1]} 42. Qf4 {[%clk 0:00:02.6]}
42... Qf5 {[%clk 0:00:21.6]} 43. Qe3 {[%clk 0:00:02.2]} 43... Ng4 {[%clk
0:00:21.7]} 44. Qc1 {[%clk 0:00:01.8]} 44... Qxf2+ {[%clk 0:00:22]} 45. Kh1
{[%clk 0:00:02.1]} 45... Qh4+ {[%clk 0:00:22.4]} 46. Kg1 {[%clk 0:00:02.8]}
46... Qh2+ {[%clk 0:00:23.1]} 47. Kf1 {[%clk 0:00:03.4]} 47... Qh1+ {[%clk
0:00:24]} 48. Ke2 {[%clk 0:00:04.3]} 48... Qxc1 {[%clk 0:00:24.6]} 49. Kf3
{[%clk 0:00:05]} 49... Qe3+ {[%clk 0:00:24.9]} 50. Kxg4 {[%clk 0:00:05.1]} 50...
h5+ {[%clk 0:00:24.9]} 51. Kh4 {[%clk 0:00:05]} 51... Kh6 {[%clk 0:00:25.3]} 52.
d5 {[%clk 0:00:04.8]} 52... g5# {[%clk 0:00:25.3]} 0-1

[Event "Early-Titled-Tuesday-Blitz-May-14-2024"]
[Site "Chess.com"]
[Date "2024.05.14"]
[Round "8"]
[White "valik3504"]
[Black "Crazy_girl99"]
[Result "1-0"]
[WhiteElo "2562"]
[BlackElo "2633"]
[TimeControl "180+1"]
[EndTime "9:30:50 PDT"]
[Termination "valik3504 won on time"]

1. d4 {[%clk 0:03:00.9]} 1... Nf6 {[%clk 0:02:59.8]} 2. Nf3 {[%clk 0:03:01.2]}
2... d5 {[%clk 0:02:59.1]} 3. c4 {[%clk 0:03:01.3]} 3... e6 {[%clk 0:02:59.3]}
4. e3 {[%clk 0:02:59.4]} 4... Nbd7 {[%clk 0:02:54.5]} 5. b3 {[%clk 0:02:58.4]}
5... Bb4+ {[%clk 0:02:54.4]} 6. Nbd2 {[%clk 0:02:53.9]} 6... O-O {[%clk
0:02:54.2]} 7. Bd3 {[%clk 0:02:54.1]} 7... c5 {[%clk 0:02:54]} 8. O-O {[%clk
0:02:54.1]} 8... cxd4 {[%clk 0:02:50.5]} 9. exd4 {[%clk 0:02:52.6]} 9... dxc4
{[%clk 0:02:50.6]} 10. bxc4 {[%clk 0:02:52.4]} 10... Nb6 {[%clk 0:02:50.5]} 11.
Bb2 {[%clk 0:02:50.3]} 11... Bd7 {[%clk 0:02:48]} 12. Rc1 {[%clk 0:02:48]} 12...
Ba4 {[%clk 0:02:46.8]} 13. Qe2 {[%clk 0:02:41.8]} 13... Rc8 {[%clk 0:02:46.8]}
14. Ne4 {[%clk 0:02:37.8]} 14... Nbd7 {[%clk 0:02:43.4]} 15. Bb1 {[%clk
0:02:22.5]} 15... Bc6 {[%clk 0:02:37.4]} 16. d5 {[%clk 0:02:09.1]} 16... exd5
{[%clk 0:02:37.1]} 17. Nxf6+ {[%clk 0:02:02]} 17... Nxf6 {[%clk 0:02:36.5]} 18.
cxd5 {[%clk 0:02:02.4]} 18... Re8 {[%clk 0:02:23.2]} 19. Bxf6 {[%clk 0:01:49]}
19... Qxf6 {[%clk 0:01:30.5]} 20. Qd3 {[%clk 0:01:34.1]} 20... Bd7 {[%clk
0:01:20.7]} 21. Qxh7+ {[%clk 0:01:28.3]} 21... Kf8 {[%clk 0:01:20.7]} 22. Rcd1
{[%clk 0:01:11.9]} 22... g6 {[%clk 0:01:19.4]} 23. Qh6+ {[%clk 0:01:07.8]} 23...
Qg7 {[%clk 0:01:19]} 24. Qf4 {[%clk 0:01:08.1]} 24... a5 {[%clk 0:01:12]} 25.
Ng5 {[%clk 0:01:00.1]} 25... Kg8 {[%clk 0:01:10.4]} 26. h4 {[%clk 0:00:57.7]}
26... Bb5 {[%clk 0:01:07.5]} 27. Bd3 {[%clk 0:00:56.1]} 27... Ba4 {[%clk
0:00:53.7]} 28. Rc1 {[%clk 0:00:49.2]} 28... Bd7 {[%clk 0:00:38.5]} 29. h5
{[%clk 0:00:23.9]} 29... gxh5 {[%clk 0:00:18.6]} 30. Bh7+ {[%clk 0:00:16.3]}
30... Kf8 {[%clk 0:00:17.5]} 31. Bf5 {[%clk 0:00:16.8]} 31... Bxf5 {[%clk
0:00:16.8]} 32. Qxf5 {[%clk 0:00:17.3]} 32... Rxc1 {[%clk 0:00:16.7]} 33. Rxc1
{[%clk 0:00:17.2]} 33... Kg8 {[%clk 0:00:17.1]} 34. g3 {[%clk 0:00:12.9]} 34...
Bd6 {[%clk 0:00:16.2]} 35. Qd7 {[%clk 0:00:10.8]} 35... Rf8 {[%clk 0:00:07.8]}
36. Ne4 {[%clk 0:00:08.3]} 36... Be5 {[%clk 0:00:07.5]} 37. Qxb7 {[%clk
0:00:07.6]} 37... Qg4 {[%clk 0:00:05.4]} 38. Re1 {[%clk 0:00:05.1]} 38... h4
{[%clk 0:00:05.6]} 39. Qe7 {[%clk 0:00:04.7]} 39... Bg7 {[%clk 0:00:04.5]} 40.
Qxh4 {[%clk 0:00:04.5]} 40... Qd7 {[%clk 0:00:04.6]} 41. Qg5 {[%clk 0:00:04.3]}
41... Re8 {[%clk 0:00:03.9]} 42. Nf6+ {[%clk 0:00:04.3]} 1-0

[Event "Early-Titled-Tuesday-Blitz-May-14-2024"]
[Site "Chess.com"]
[Date "2024.05.14"]
[Round "8"]
[White "sergeikim"]
[Black "zozik"]
[Result "1-0"]
[WhiteElo "2616"]
[BlackElo "2329"]
[TimeControl "180+1"]
[EndTime "9:30:50 PDT"]
[Termination "sergeikim won on time"]

1. d4 {[%clk 0:03:00.9]} 1... Nf6 {[%clk 0:02:55]} 2. c4 {[%clk 0:03:00.9]} 2...
c5 {[%clk 0:02:53.8]} 3. d5 {[%clk 0:03:00.3]} 3... b5 {[%clk 0:02:53.9]} 4.
cxb5 {[%clk 0:03:00.6]} 4... a6 {[%clk 0:02:54.5]} 5. b6 {[%clk 0:03:00.7]} 5...
Qxb6 {[%clk 0:02:53.6]} 6. Nc3 {[%clk 0:03:00.7]} 6... d6 {[%clk 0:02:54.2]} 7.
e4 {[%clk 0:03:00.8]} 7... g6 {[%clk 0:02:54.9]} 8. Be2 {[%clk 0:03:01]} 8...
Bg7 {[%clk 0:02:55.3]} 9. Nf3 {[%clk 0:03:01.2]} 9... O-O {[%clk 0:02:55.8]} 10.
O-O {[%clk 0:03:00.6]} 10... a5 {[%clk 0:02:53.2]} 11. Nd2 {[%clk 0:02:58.2]}
11... Ba6 {[%clk 0:02:48]} 12. a4 {[%clk 0:02:58.1]} 12... Bxe2 {[%clk
0:02:46.8]} 13. Qxe2 {[%clk 0:02:57.6]} 13... Na6 {[%clk 0:02:44.8]} 14. Ra3
{[%clk 0:02:53]} 14... Rab8 {[%clk 0:02:36.5]} 15. Nc4 {[%clk 0:02:45.9]} 15...
Qc7 {[%clk 0:02:34.4]} 16. Nb5 {[%clk 0:02:42.9]} 16... Qd8 {[%clk 0:02:34.3]}
17. Rh3 {[%clk 0:02:39.7]} 17... Nb4 {[%clk 0:02:32.9]} 18. Bh6 {[%clk
0:02:36.5]} 18... Qd7 {[%clk 0:02:12.4]} 19. Bxg7 {[%clk 0:02:34.1]} 19... Kxg7
{[%clk 0:02:13.3]} 20. b3 {[%clk 0:02:23.2]} 20... Ra8 {[%clk 0:01:56.2]} 21.
Nb6 {[%clk 0:02:20.7]} 21... Qb7 {[%clk 0:01:53.7]} 22. Nxa8 {[%clk 0:02:19.8]}
22... Qxa8 {[%clk 0:01:54.6]} 23. Rd1 {[%clk 0:02:07.9]} 23... Qc8 {[%clk
0:01:50.1]} 24. e5 {[%clk 0:02:03.8]} 24... Nfxd5 {[%clk 0:01:42.5]} 25. exd6
{[%clk 0:01:59.7]} 25... exd6 {[%clk 0:01:30.8]} 26. Nxd6 {[%clk 0:01:58.7]}
26... Qd7 {[%clk 0:01:28.4]} 27. Qe5+ {[%clk 0:01:54.4]} 27... f6 {[%clk
0:01:28]} 28. Qg3 {[%clk 0:01:44.4]} 28... Rd8 {[%clk 0:01:22.8]} 29. Nc4 {[%clk
0:01:39]} 29... Qf5 {[%clk 0:01:21.9]} 30. Rf1 {[%clk 0:01:30.6]} 30... Nf4
{[%clk 0:01:20.4]} 31. Kh1 {[%clk 0:01:26.4]} 31... Rd3 {[%clk 0:01:16.3]} 32.
f3 {[%clk 0:01:21.1]} 32... Nxh3 {[%clk 0:01:13.9]} 33. gxh3 {[%clk 0:01:21.3]}
33... Rxb3 {[%clk 0:01:12.6]} 34. Qc7+ {[%clk 0:01:19.1]} 34... Kh6 {[%clk
0:01:12.1]} 35. Nd6 {[%clk 0:01:15.6]} 35... Qd3 {[%clk 0:01:07.7]} 36. Nf7+
{[%clk 0:01:03.9]} 36... Kh5 {[%clk 0:01:05.7]} 37. Qxc5+ {[%clk 0:01:03.1]}
37... f5 {[%clk 0:00:57.8]} 38. Kg2 {[%clk 0:00:53.7]} 38... Rb2+ {[%clk
0:00:52.5]} 39. Rf2 {[%clk 0:00:54]} 39... Rxf2+ {[%clk 0:00:48.7]} 40. Kxf2
{[%clk 0:00:45.5]} 40... Qb3 {[%clk 0:00:42.6]} 41. Qe7 {[%clk 0:00:32.3]} 41...
Qc2+ {[%clk 0:00:28.7]} 42. Kf1 {[%clk 0:00:20.5]} 42... Qd1+ {[%clk 0:00:26.8]}
43. Kg2 {[%clk 0:00:19.2]} 43... Qe2+ {[%clk 0:00:25.9]} 44. Qxe2 {[%clk
0:00:18.3]} 1-0